[Event "UKR-ch Semifinal 2018"]
[Site "Omelnyk"]
[Date "2018.11.02"]
[Round "8"]
[White "Molchanov, Oleksii"]
[Black "Bakhmatsky, Vladislav"]
[Result "1/2-1/2"]
[ECO "E93"]
[WhiteElo "2369"]
[BlackElo "2409"]
[Annotator "ChessBase"]
[PlyCount "99"]
[EventDate "2018.11.26"]
[EventType "tourn"]
[EventCountry "UKR"]
[SourceTitle "playchess.com"]
[Source "ChessBase"]
[SourceQuality "1"]
[TimeControl "40/5400+30:1800+30"]

1. Nf3 {[%emt 0:00:00]} Nf6 {[%emt 0:00:02]} 2. c4 {[%emt 0:00:08]} g6 {[%emt 0:00:03]} 3. Nc3 {[%emt 0:01:13]} Bg7 {[%emt 0:00:06]} 4. e4 {[%emt 0:01:18]} d6 {[%emt 0:04:36]} 5. d4 {[%emt 0:01:03]} O-O {[%emt 0:00:03]} 6. Be2 {[%emt 0:00:13]} e5 {[%emt 0:05:46]} 7. d5 {[%emt 0:02:16]} Nbd7 {[%emt 0:05:28]} 8. O-O {[%emt 0:02:47]} Nc5 {[%emt 0:01:10]} 9. Qc2 {[%emt 0:00:21]} a5 {[%emt 0:00:01]} 10. Bg5 {[%emt 0:00:54]} h6 {[%emt 0:06:37]} 11. Be3 {[%emt 0:01:45]} Nh5 {[%emt 0:20:59]} 12. g3 {[%emt 0:06:29]} Bg4 {[%emt 0:07:34]} 13. Qd1 {[%emt 0:17:19]} Nf6 {[%emt 0:15:34]} 14. Nd2 {[%emt 0:06:38]} Bxe2 {[%emt 0:00:40]} 15. Qxe2 {[%emt 0:00:10]} Ncd7 {[%emt 0:06:10]} 16. a3 {[%emt 0:04:12]} c6 {[%emt 0:05:24]} 17. dxc6 {[%emt 0:04:04]} bxc6 {[%emt 0:00:07]} 18. b4 {[%emt 0:00:09]} Qc7 {[%emt 0:04:11]} 19. Rab1 {[%emt 0:06:20]} axb4 {[%emt 0:01:20]} 20. axb4 {[%emt 0:01:33]} Rfb8 {[%emt 0:04:54]} 21. Rfc1 {[%emt 0:00:50]} Nf8 {[%emt 0:00:59]} 22. b5 {[%emt 0:01:48]} N6d7 {[%emt 0:00:29]} 23. Nb3 {[%emt 0:04:45]} Ne6 {[%emt 0:00:07]} 24. Qd2 {[%emt 0:01:05]} Kh7 {[%emt 0:00:01]} 25. Na2 {[%emt 0:07:28]} Ndc5 {[%emt 0:01:58]} 26. Nb4 {[%emt 0:04:10]} cxb5 {[%emt 0:00:51]} 27. Nd5 {[%emt 0:05:51]} Qc6 {[%emt 0:00:01]} 28. Qc2 {[%emt 0:11:30]} bxc4 {[%emt 0:03:31]} 29. Na5 {[%emt 0:00:53]} Qa4 {[%emt 0:03:09]} 30. Qxa4 {[%emt 0:00:37]} Nxa4 {[%emt 0:00:01]} 31. Nxc4 {[%emt 0:00:15]} Bf8 {[%emt 0:00:42]} 32. f4 {[%emt 0:02:16]} exf4 {[%emt 0:01:40]} 33. gxf4 {[%emt 0:00:39]} Rxb1 {[%emt 0:00:31]} 34. Rxb1 {[%emt 0:00:02]} Rc8 {[%emt 0:00:15]} 35. Rb4 {[%emt 0:04:17]} Nac5 {[%emt 0:00:04]} 36. f5 {[%emt 0:00:47]} Ng5 {[%emt 0:00:49]} 37. fxg6+ {[%emt 0:00:33]} Kxg6 {[%emt 0:00:39]} 38. Nxd6 {[%emt 0:00:54]} Bxd6 {[%emt 0:00:31]} 39. Rb6 {[%emt 0:00:01]} Nce6 {[%emt 0:01:44]} 40. Rxd6 {[%emt 0:00:00]} Rc4 {[%emt 0:00:00]} 41. Bxg5 {[%emt 0:12:58]} hxg5 {[%emt 0:08:02]} 42. e5 {[%emt 0:08:13]} Rc1+ {[%emt 0:00:04]} 43. Kf2 {[%emt 0:00:05]} Kf5 {[%emt 0:00:17]} 44. Ne3+ {[%emt 0:00:56]} Kxe5 {[%emt 0:06:53]} 45. Rd7 {[%emt 0:00:19]} f6 {[%emt 0:13:55]} 46. Rf7 {[%emt 0:01:58]} Nf4 {[%emt 0:00:20]} 47. Re7+ {[%emt 0:01:39]} Kd6 {[%emt 0:01:08]} 48. Nf5+ {[%emt 0:00:09]} Kc6 {[%emt 0:00:40]} 49. Rf7 {[%emt 0:01:47]} Nd5 {[%emt 0:00:17]} 50. Ne3 {[%emt 0:01:13]} 1/2-1/2